Cogmind - Beta 9.6 @@@ ROGUE MODE // 2020.09.01 @ 00:02:05 // Winter2019/RPGLIKE Player: Hermelin Result: Destroyed by 8R-AWN with 8R-AWN's Boregun Performance ------------- Evolutions (0) 0 Regions Visited (3) 600 Robots Destroyed (39) 195 Value Destroyed (850) 850 Prototype IDs (24) 480 Alien Tech Used (0) 0 Bonus (-69) -69 TOTAL SCORE: 2056 Bonus ------- High Alert Combat Kills 16 Aligned with FarCom 300 Friendly Fire -385 Cogmind --------- Core Integrity 0/600 Matter 205/300 Energy 160/160 System Corruption 0% Temperature Cool (0) Movement Walking (90) Location -10/Exiles Parts ------- > --- POWER (1) -------- Light Nuclear Core > --- PROPULSION (2) --- Light Treads Potential Leg > --- UTILITY (4) ------ Cloak of Protection Light Armor Plating > --- WEAPON (2) ------- Mini Grenade Launcher Longsword +1 > --- INVENTORY (3) ---- Heavy Assault Rifle Heavy Assault Rifle Peak State ------------ > --- POWER ------------ Light Nuclear Core > --- PROPULSION ------- Light Treads Potential Leg > --- UTILITY ---------- Cloak of Protection Utility Shielding Medium Armor Plating Medium Armor Plating > --- WEAPON ----------- Mini Grenade Launcher Longsword +1 > --- INVENTORY -------- Potential Leg Light Armor Plating Heavy Assault Rifle [Rating: 38] Favorites ----------- Power Light Nuclear Core Engine Ion Engine Power Core Light Nuclear Core Propulsion Light Treads Treads Light Treads Leg Potential Leg Wheel Wheel Utility Medium Armor Plating Device Improved Terrain Scanner Processor Signal Interpreter Protection Medium Armor Plating Weapon Heavy Assault Rifle Energy Gun EM Pulse Gun Ballistic Gun Heavy Assault Rifle Launcher Mini Grenade Launcher Slashing Weapon Longsword +1 Build | -11 -10 -10 -10 ------- Run | Scr Mat Min Exi Slots Evolved 5 | 3 1 1 . Power . | . . . . Propulsion 1 | 1 . . . Utility 3 | 1 1 1 . Weapon 1 | 1 . . . Parts Attached 22 | 7 4 5 6 Power 2 | 1 . 1 . Engine 1 | 1 . . . Core 1 | . . 1 . Reactor . | . . . . Propulsion 3 | 2 . . 1 Treads 1 | 1 . . . Leg 1 | . . . 1 Wheel 1 | 1 . . . Hover . | . . . . Flight . | . . . . Utility 11 | 2 3 3 3 Device 3 | 1 . 1 1 Storage . | . . . . Processor 2 | 1 1 . . Hackware . | . . . . Protection 6 | . 2 2 2 Artifact . | . . . . Weapon 6 | 2 1 1 2 Energy Gun 1 | 1 . . . Energy Cannon . | . . . . Ballistic Gun 3 | 1 1 1 . Ballistic Cannon . | . . . . Launcher 1 | . . . 1 Special Weapon . | . . . . Impact Weapon . | . . . . Slashing Weapon 1 | . . . 1 Piercing Weapon . | . . . . Special Melee Weapon . | . . . . Unidentified Prototypes . | . . . . Parts Lost 3 | . . . 3 Power . | . . . . Propulsion . | . . . . Utility 3 | . . . 3 Weapon . | . . . . Highest Loss Streak 3 | . . . 3 Average Slot Usage (%) 96 | . 98 94 98 Engine 3 | . 13 . . Core 8 | . . 10 11 Treads 11 | . 13 11 11 Leg 1 | . . . 6 Wheel 9 | . 13 11 4 Device 10 | . 13 12 5 Protection 26 | . 14 25 37 Energy Gun 7 | . 13 9 . Ballistic Gun 12 | . 13 12 10 Launcher 1 | . . . 5 Slashing Weapon 1 | . . . 5 Naked Turns . | . . . . Heaviest Build 34 | 9 25 29 34 Greatest Support 35 | 25 15 15 35 Greatest Overweight (x) 3 | . 1 1 3 Average Overweight (x) . | . . 1 . Largest Inventory Capacity 3 | 2 2 3 3 Average Capacity 2 | 2 2 2 3 Most Carried 3 | 2 2 3 3 Average Carried 2 | 1 1 2 2 Final Capacity 3 | 2 2 3 3 Final Carried 3 | 2 2 3 2 Class Distribution -------------------- 100% | Mutant Dominant Class ---------------- Mutant | -10/Materials Mutant | -10/Mines Mutant | -10/Exiles Resources | -11 -10 -10 -10 ----------- Run | Scr Mat Min Exi Matter Collected 545 | 281 112 152 . Remotely . | . . . . Salvage Created 1001 | 152 150 684 15 Parts 68 | 6 25 37 . Haulers Intercepted . | . . . . Recyclers Shooed . | . . . . Parts Field Recycled . | . . . . Retrieved Matter . | . . . . Parts Self-Destructed . | . . . . Prevented . | . . . . Kills | -11 -10 -10 -10 ------- Run | Scr Mat Min Exi Combat Hostiles Destroyed 32 | . 12 16 4 Melee 1 | . . . 1 Guns 27 | . 11 16 . AOE 4 | . 1 . 3 Classes Destroyed 7 | 2 3 1 1 Tunneler 3 | 3 . . . Recycler 1 | 1 . . . Watcher 1 | . 1 . . Swarmer 9 | . 4 5 . Grunt 17 | . 8 9 . Sentry 2 | . . 2 . Assembled 6 | . . . 6 Best Kill Streak 5 | 4 5 5 4 Combat Bots Only 5 | . 4 5 4 Max Kills in Single Turn 2 | 1 2 2 2 Gunslinging 1 | . 1 1 . Exploded 2 | . 1 . 2 Melee 1 | . . . 1 Uniques/NPCs Destroyed . | . . . . Combat | -11 -10 -10 -10 -------- Run | Scr Mat Min Exi Damage Taken 1744 | . 302 678 764 Core 1188 | . 222 477 489 Absorbed by Shields . | . . . . Redirected to Core 886 | . 173 324 389 Core Remaining (%) 100 | 100 . . . Volleys Fired 74 | 11 24 34 5 Largest 2 | 2 2 2 1 Hottest 63 | 60 63 63 30 Shots Fired 143 | 22 48 68 5 Gun 138 | 22 48 68 . Cannon . | . . . . Launcher 5 | . . . 5 Special . | . . . . Kinetic 69 | 11 24 34 . Thermal . | . . . . Explosive 5 | . . . 5 Electromagnetic 69 | 11 24 34 . Robot Hit Streak 10 | 5 8 10 2 Robot Miss Streak 3 | 2 2 3 1 Penetration Max . | . . . . Secondary Targets 4 | . 1 3 . Max Gunslinging Chain 1 | . 1 1 . Shots Hit Robots 114 | 13 31 49 21 Core Hits 54 | 5 15 22 12 Critical Hits 1 | . . . 1 Critical Kills . | . . . . Critical Parts Destroyed . | . . . . Melee Attacks 19 | . . . 19 Impact . | . . . . Slashing 19 | . . . 19 Piercing . | . . . . Sneak Attacks . | . . . . Combat Hostiles . | . . . . Follow-up Attacks . | . . . . Damage Inflicted 2817 | 178 570 749 1320 Guns 1311 | 136 467 708 . Cannons . | . . . . Explosions 653 | 42 103 41 467 Melee 853 | . . . 853 Ramming . | . . . . Kinetic 583 | 31 200 352 . Thermal 186 | 42 103 41 . Explosive 467 | . . . 467 Electromagnetic 728 | 105 267 356 . Impact . | . . . . Slashing 853 | . . . 853 Piercing . | . . . . Highest Corruption . | . . . . Average Corruption . | . . . . Corruption Purged . | . . . . Overload Shots . | . . . . Overflow Damage 71 | . 16 . 55 Projectiles . | . . . . Explosions 43 | . 16 . 27 Melee 28 | . . . 28 Knockbacks . | . . . . Impact . | . . . . Kinetic . | . . . . Secondary . | . . . . Self-Inflicted Damage 82 | . 60 . 22 Shots 3 | . 2 . 1 Rammed . | . . . . Targets Rammed . | . . . . Kicked . | . . . . Crushed . | . . . . Highest Temperature 174 | 16 30 174 . Average Temperature 35 | 6 10 51 . Received Heat Transfer 384 | . 102 282 . Siege Activations . | . . . . Robots Corrupted . | . . . . Combat Hostiles . | . . . . Parts Fried 1 | 1 . . . Impact Corruptions . | . . . . Robots Melted . | . . . . Combat Hostiles . | . . . . Parts Melted . | . . . . Heat Transferred 250 | 50 150 50 . Parts Sabotaged . | . . . . Parts Stolen . | . . . . Parts Stripped . | . . . . Power Chain Reactions 4 | 1 2 1 . Missiles Intercepted . | . . . . Alert | -11 -10 -10 -10 ------- Run | Scr Mat Min Exi Peak Influence 414 | 20 414 411 . Average Influence 235 | 6 250 255 . Maximum Alert Level 2 | . 2 2 . Low Security (%) 37 | 100 36 30 . Level 1 56 | . 48 66 . Level 2 6 | . 15 3 . Level 3 . | . . . . Level 4 . | . . . . Level 5 . | . . . . High Security . | . . . . Max Security . | . . . . Squads Dispatched 5 | . 3 2 . Investigation 5 | . 3 2 . Extermination . | . . . . Reinforcement . | . . . . Assault . | . . . . Garrison . | . . . . Intercept . | . . . . Construction Impeded . | . . . . Haulers Reinforced . | . . . . Stealth | -11 -10 -10 -10 --------- Run | Scr Mat Min Exi Distress Signals 1 | . 1 . . Communications Jammed . | . . . . Distress Signals . | . . . . Times Spotted 40 | . 16 17 7 Peak Tracking Total 9 | . 4 4 9 Tactical Retreats 3 | . 2 . 1 Traps | -11 -10 -10 -10 ------- Run | Scr Mat Min Exi Traps Triggered . | . . . . Indirectly . | . . . . Trap Hack Attempts . | . . . . Triggered . | . . . . Disarmed . | . . . . Reprogrammed . | . . . . Reused . | . . . . Traps Extracted . | . . . . Installed . | . . . . Triggered . | . . . . Machines | -11 -10 -10 -10 ---------- Run | Scr Mat Min Exi Machines Disabled 6 | . 3 . 3 Max in Single Turn 2 | . 1 . 2 Machines Sabotaged . | . . . . Garrisons Compromised . | . . . . Overloaded Fab Kills . | . . . . Fab Network Shutdowns . | . . . . Hacking | -11 -10 -10 -10 --------- Run | Scr Mat Min Exi Machines Accessed 7 | . 4 1 2 Terminals 3 | . 2 1 . Fabricators . | . . . . Repair Stations . | . . . . Recycling Units 2 | . 2 . . Scanalyzers . | . . . . Garrison Access . | . . . . Total Hacks 23 | . 14 7 2 Successful 16 | . 11 3 2 Failed 5 | . 2 3 . Catastrophic . | . . . . Database Lockouts 2 | . 1 1 . Manual 19 | . 10 8 1 Terminals 16 | . 9 7 . Fabricators . | . . . . Repair Stations . | . . . . Recycling Units 5 | . 5 . . Scanalyzers . | . . . . Garrison Access . | . . . . Terminal Hacks 9 | . 4 3 2 Record 1 | . . . 1 Robot Analysis 3 | . 1 2 . Prototype ID Bank 1 | . 1 . . Terminal Index 1 | . 1 . . Unreport Threat 1 | . . 1 . Hauler Manifests 1 | . 1 . . EX-Prototype ID Bank 1 | . . . 1 Fabricator Hacks . | . . . . Repair Station Hacks . | . . . . Recycling Unit Hacks 2 | . 2 . . Report Inventory 2 | . 2 . . Scanalyzer . | . . . . Garrison Access Hacks . | . . . . Unauthorized Hacks 5 | . 5 . . Terminals 3 | . 3 . . Track 1 | . 1 . . Botnet 1 | . 1 . . Operators 1 | . 1 . . Fabricators . | . . . . Repair Stations . | . . . . Recycling Units 2 | . 2 . . Tunnel 2 | . 2 . . Scanalyzers . | . . . . Garrison Access . | . . . . Data Cores Recovered . | . . . . Used . | . . . . Hacking Detections 3 | . 2 1 . Full Trace Events 1 | . . 1 . Feedback Events . | . . . . Feedback Blocked . | . . . . Robot Schematics Acquired . | . . . . Robots Built . | . . . . Matter . | . . . . Time . | . . . . Total Robot Build Rating . | . . . . Part Schematics Acquired . | . . . . Parts Built . | . . . . Matter . | . . . . Time . | . . . . Total Part Build Rating . | . . . . Parts Repaired . | . . . . Time . | . . . . Parts Recycled . | . . . . Recycled Matter . | . . . . Retrieved Matter . | . . . . Retrieved Components . | . . . . Parts Scanalyzed . | . . . . Part Schematics Acquired . | . . . . Parts Damaged . | . . . . Bothacking | -11 -10 -10 -10 ------------ Run | Scr Mat Min Exi Used RIF Installer . | . . . . Robots Hacked . | . . . . Non-combat . | . . . . Combat . | . . . . Robot Hacks Applied . | . . . . Relay Couplers Released . | . . . . Robots Rewired . | . . . . Allies Hacked . | . . . . Hacks Repelled . | . . . . Allies | -11 -10 -10 -10 -------- Run | Scr Mat Min Exi Total Allies . | . . . . Largest Group . | . . . . Highest-Rated Group . | . . . . Highest-Rated Ally . | . . . . Total Orders . | . . . . Ally Attacks . | . . . . Total Damage . | . . . . Kills . | . . . . Allies Corrupted . | . . . . Allies Melted . | . . . . Intel | -11 -10 -10 -10 ------- Run | Scr Mat Min Exi Robot Analysis Total 3 | . 1 2 . Derelict Logs Recovered 2 | . . 2 . Drone Launches . | . . . . Drone Recoveries . | . . . . Exploration | -11 -10 -10 -10 ------------- Run | Scr Mat Min Exi Turns Passed 1628 | 83 345 721 479 Spaces Moved 1336 | 50 238 604 444 Core 8 | 3 . . 5 Treads 5 | 1 . . 4 Legs 213 | . . . 213 Wheels 1110 | 46 238 604 222 Hover . | . . . . Flight . | . . . . Fastest Speed 45 | 50 80 90 45 Average Speed 89 | 79 88 90 91 Slowest Speed 200 | 160 90 90 200 Overloaded Moves 5 | . . . 5 Propulsion Burnouts . | . . . . Robots Hopped . | . . . . Cave-ins Triggered . | . . . . Exploration Rate (%) 45 | 4 26 99 52 Regions Visited 3 Branch Regions 2 Pre-discovered Areas 4 | . 2 1 1 Known Exits Taken . | . . . . Unknown Exits Taken 3 | 1 1 1 . Scrap Searched 2 | . . 2 . Spaces Dug . | . . . . Terrain Destroyed 50 | 4 11 8 27 Melee . | . . . . Projectile . | . . . . AOE 50 | 4 11 8 27 Actions | -11 -10 -10 -10 --------- Run | Scr Mat Min Exi Total 1603 | 69 324 713 497 Wait 82 | . 35 47 . Move 1333 | 49 237 603 444 Hop . | . . . . Pick Up 16 | 2 2 2 10 Fast Attach 19 | 7 3 5 4 Attach 2 | . . . 2 Detach . | . . . . Swap 1 | . 1 . . Drop 23 | . 5 5 13 Fire 74 | 11 24 34 5 Melee 19 | . . . 19 Ram . | . . . . Kick . | . . . . Crush . | . . . . Escape Stasis . | . . . . Rewire . | . . . . Trap . | . . . . Miscellaneous 34 | . 17 17 . Route ------- -11/Scrapyard -10/Materials -10/Mines (discovered 3 exits: [*Mat x2] / *Exi) -10/Exiles (discovered 1 exit: [*Min]) History --------- Turn | Location | Event 1 | -11/Scrapyard | Upgraded with Propulsion slot (x1) 1 | -11/Scrapyard | Upgraded with Utility slot (x1) 1 | -11/Scrapyard | Upgraded with Weapon slot (x1) 4 | -11/Scrapyard | Discovered new exit (range 17) 84 | -11/Scrapyard | Entered Materials 259 | -10/Materials | Central database locked down 282 | -10/Materials | Discovered new exit (range 17) 306 | -10/Materials | Build established: Mutant 310 | -10/Materials | Reached level 2 322 | -10/Materials | Upgraded with Utility slot (x1) 429 | -10/Materials | Entered Mines 537 | -10/Mines | Reached level 3 549 | -10/Mines | Core integrity fell below 50% 558 | -10/Mines | Upgraded with Utility slot (x1) 667 | -10/Mines | Discovered new exit (range 7) 672 | -10/Mines | Central database locked down 878 | -10/Mines | Discovered new exit (range 5) 970 | -10/Mines | Learned Materials trap positions 1147 | -10/Mines | Deemed a non-threat by the Exiles lab entrance 1147 | -10/Mines | Discovered new exit (range 5) 1150 | -10/Mines | Entered Exiles 1162 | -10/Exiles | Discovered new exit (range 16) 1203 | -10/Exiles | Met 8R-AWN 1217 | -10/Exiles | Met EX-HEX 1242 | -10/Exiles | Met EX-BIN 1267 | -10/Exiles | Met EX-DEC 1272 | -10/Exiles | Learned location of Zion (-6) 1330 | -10/Exiles | Reached level 4 1330 | -10/Exiles | Aligned with FarCom system 1331 | -10/Exiles | Given EX-Vault access code 1352 | -10/Exiles | Opened EX-Vault 1368 | -10/Exiles | Found Potential Leg 1373 | -10/Exiles | Found Cloak of Protection 1378 | -10/Exiles | Found Longsword +1 1403 | -10/Exiles | Warned to stay clear of 0b10 Research branches 1507 | -10/Exiles | Found Potential Leg 1572 | -10/Exiles | Attacked by the Exiles 1609 | -10/Exiles | Core integrity fell below 20% 1629 | -10/Exiles | Destroyed by 8R-AWN with 8R-AWN's Boregun Last Messages --------------- 01601_ Critical hit. 01603_ Penetrated by HV Slug. 01605_ The unstable cave ceiling collapses. 01605_ Penetrated by HV Slug. 01605_ HV Slug penetrates Wall. 01608_ Penetrated by HV Slug. 01608_ Utility Shielding destroyed. 01609_ The unstable cave ceiling collapses. 01610_ Penetrated by HV Slug. 01611_ Destroyed Prototype Protection. 01615_ Penetrated by HV Slug. 01615_ HV Slug penetrates Wall. 01618_ Penetrated by HV Slug. 01623_ Critical hit. 01623_ Med. Armor Plating destroyed. 01625_ Penetrated by HV Slug. 01625_ Destroyed Prototype Device. 01627_ Penetrated by HV Slug. 01627_ Destroyed Prototype Device. 01629_ Penetrated by HV Slug. Map ----- +----------------------------------------------------+ | """#??????????????????????????????????????????? | | """#??????????????????????????????????????????? | | """#??????????????????????????????????????????? | | """"??????????????????????????????????????????? | | """#??????????????????????????????????????????? | | X" """"??????????????????????????????????????????? | | "" #??????????????????????????????????????????? | | """"""#??????????????????????????????????????????? | | #######??????????????????????????????????????????? | | ?????????????????????????????????????????????????? | | ?????????????????????????????????????????????????# | | ????????????????????????????????????????????????? | | ??###########???????????????????????????????????? | | ###"""""""""##??????????????????????????????????? | | " """ """"##?????????????????????????????????# | | "" " #???????????????????????????????## | | " """#???????????????????????????????# | | " "#???????????#####???????????????# | | " "##?????????##" #??????????????## | | ""###???????#" #?????????????## | | """#??????##" ##????????????# | | "#????### ###????????### | | ##???# ########## | | " [[##?## #""""## # | | "" =### # | | @g## | | " #### | | ""#?#"""""#### | | ;"""##?#######??#### * | | ######??????????????##### * | | #???????????????????????### * | | ##?????????????????????????### | | " #????????????????????????????## | | " " "" % #?????????????????????????????# | | """ """ ##?????????????????????????????# | | ##""""#### # ???????????????????????????????? | | ?#####???# # ???????????????????????????????? | | ?????????####### #???????????????????????????????? | | ???????????????##????????????????????????????????? | | ?????????????????????????????????????????????????? | | ?????????????????????????????????????????????????? | | ?????????????????????????????????????????????????? | | ?????????????????????????????????????????????????? | | ?????????????????????????????????????????????????? | | ?????????????????????????????????????????????????? | | ?????????????????????????????????????????????????? | | ?????????????????????????????????????????????????? | | ?????????????????????????????????????????????????? | | ?????????????????????????????????????????????????? | | ?????????????????????????????????????????????????? | +----------------------------------------------------+ Best States ------------- Heat Dissipation 45 Energy Generation 14 Energy Capacity 250 Matter Stores 300 Matter Capacity 300 Sight Range 17 Robot Scan Range 2 Terrain Scan Range 16 Terrain Scan Density 160 Armor Coverage 600 Utility Shielding 33 Evasion (%) 44 Recoil Reduction 1 Offensive Hacking 5 Defensive Hacking 5 Item Schematics ----------------- None Robot Schematics ------------------ None Fabricated ------------ Nothing Alien Tech Used ----------------- None Achievements -------------- None Challenges ------------ None RPGLIKE | -11 -10 -10 -10 --------- Run | Scr Mat Min Exi Levels Raised 3 | . 1 1 1 XP Earned 7618 | 3000 1814 2454 350 XP Spent 5650 | 3000 800 1850 . Upgrades 15 | 12 1 2 . Propulsion Slot 1 | 1 . . . Utility Slot 3 | 1 1 1 . Weapon Slot 1 | 1 . . . Heat Dissipation 1 | 1 . . . Mass Support 1 | 1 . . . Inventory Capacity 3 | 2 . 1 . Sight Range 1 | 1 . . . Sensor Range 1 | 1 . . . Terrain Scan Density 1 | 1 . . . Hack Attack % 1 | 1 . . . Hack Defense % 1 | 1 . . . Protomatter Created 359 | . 237 119 3 Integrity Restored 664 | . 307 357 . Core 579 | . 222 357 . Parts 85 | . 85 . . Protomatter Decayed 93 | . 93 . . Game ------ Seed PhasingInertialDoomcannon Manual? 0 Play Time 00:24:17 Cumulative 163.5 hours Start 2020.08.31 @ 22:52:00 End 2020.09.01 @ 00:02:05 Sessions 3 Manual Loads 0 Difficulty Rogue Special Mode Winter2019/RPGLIKE Game No. 69 Rogue 69 Adventurer 0 Explorer 0 Win Type - Total 2 Types 1/0/0/1/0/0/0 Lore% 79 Gallery% 73 Achievement% 66 Wizard Run 0 Options --------- ASCII 0 Keyboard 0 Movement Numpad Keybinds 0 Fullscreen 1 Font 18/SmallcapsGlow Map View 76x50 Tactical HUD 1 Map Filters NONE Filters NONE Steam 1 RUN: 39f57d1b-0fbc-4493-b4ba-34a986345434